[Event "Titled Tuesday Blitz May 16 Early 2023"]
[White "Gheorghiu, Calin"]
[Black "Sowul, Bartosz"]
[WhiteFideId "1200305"]
[BlackFideId "1137590"]
[WhiteElo "2223"]
[BlackElo "2188"]
[Result "1-0"]
[Round "07"]
[TimeControl "180+2"]
[Date "2023.05.16"]
[WhiteClock "0:00:09"]
[BlackClock "0:00:14"]

1. e4 {[%clk 0:03:00]}  c5 {[%clk 0:02:58]} 2. Nf3 {[%clk 0:03:00]}  d6 {[%clk 0:02:58]} 3. d4 {[%clk 0:02:59]}  cxd4 {[%clk 0:02:59]} 4. Nxd4 {[%clk 0:03:00]}  Nf6 {[%clk 0:03:00]} 5. Nc3 {[%clk 0:03:00]}  Nc6 {[%clk 0:03:00]} 6. Bg5 {[%clk 0:02:59]}  g6 {[%clk 0:03:00]} 7. Bxf6 {[%clk 0:02:53]}  exf6 {[%clk 0:03:00]} 8. Be2 {[%clk 0:02:43]}  Bg7 {[%clk 0:02:58]} 9. O-O {[%clk 0:02:43]}  O-O {[%clk 0:02:58]} 10. Nxc6 {[%clk 0:02:03]}  bxc6 {[%clk 0:02:59]} 11. Bg4 {[%clk 0:02:04]}  f5 {[%clk 0:02:39]} 12. exf5 {[%clk 0:02:02]}  gxf5 {[%clk 0:02:40]} 13. Bf3 {[%clk 0:01:42]}  d5 {[%clk 0:02:40]} 14. Qd2 {[%clk 0:01:35]}  Rb8 {[%clk 0:02:31]} 15. Rab1 {[%clk 0:01:24]}  Ba6 {[%clk 0:02:28]} 16. Rfe1 {[%clk 0:01:23]}  Qb6 {[%clk 0:02:22]} 17. Na4 {[%clk 0:01:17]}  Qd4 {[%clk 0:02:05]} 18. Qxd4 {[%clk 0:01:07]}  Bxd4 {[%clk 0:02:05]} 19. c3 {[%clk 0:01:06]}  Bf6 {[%clk 0:01:59]} 20. Nc5 {[%clk 0:01:05]}  Bc8 {[%clk 0:01:57]} 21. a4 {[%clk 0:00:24]}  a5 {[%clk 0:01:54]} 22. g3 {[%clk 0:00:22]}  f4 {[%clk 0:01:53]} 23. g4 {[%clk 0:00:19]}  h5 {[%clk 0:01:46]} 24. h3 {[%clk 0:00:19]}  Kg7 {[%clk 0:01:33]} 25. Kg2 {[%clk 0:00:19]}  hxg4 {[%clk 0:01:31]} 26. hxg4 {[%clk 0:00:19]}  Rg8 {[%clk 0:01:31]} 27. Nd3 {[%clk 0:00:09]}  Kf8 {[%clk 0:01:30]} 28. Nxf4 {[%clk 0:00:09]}  Bg5 {[%clk 0:01:20]} 29. Nd3 {[%clk 0:00:05]}  f5 {[%clk 0:01:19]} 30. Ne5 {[%clk 0:00:04]}  fxg4 {[%clk 0:01:08]} 31. Be2 {[%clk 0:00:05]}  Rb6 {[%clk 0:01:02]} 32. Bd3 {[%clk 0:00:05]}  c5 {[%clk 0:00:52]} 33. Re2 {[%clk 0:00:04]}  c4 {[%clk 0:00:50]} 34. Bc2 {[%clk 0:00:04]}  Bf4 {[%clk 0:00:45]} 35. Ng6+ {[%clk 0:00:04]}  Rgxg6 {[%clk 0:00:43]} 36. Bxg6 {[%clk 0:00:04]}  Rxg6 {[%clk 0:00:44]} 37. Rbe1 {[%clk 0:00:04]}  Bd7 {[%clk 0:00:43]} 38. Re7 {[%clk 0:00:04]}  Bxa4 {[%clk 0:00:38]} 39. Ra7 {[%clk 0:00:04]}  g3 {[%clk 0:00:33]} 40. Ree7 {[%clk 0:00:03]}  gxf2+ {[%clk 0:00:31]} 41. Kxf2 {[%clk 0:00:04]}  Rf6 {[%clk 0:00:31]} 42. Ke2 {[%clk 0:00:03]}  Bd6 {[%clk 0:00:30]} 43. Rh7 {[%clk 0:00:02]}  Re6+ {[%clk 0:00:30]} 44. Kf3 {[%clk 0:00:02]}  Bd1+ {[%clk 0:00:29]} 45. Kg2 {[%clk 0:00:02]}  Re2+ {[%clk 0:00:26]} 46. Kf1 {[%clk 0:00:02]}  Kg8 {[%clk 0:00:16]} 47. Rhd7 {[%clk 0:00:02]}  Bf8 {[%clk 0:00:15]} 48. Rxd5 {[%clk 0:00:02]}  Rxb2 {[%clk 0:00:10]} 49. Rxd1 {[%clk 0:00:02]}  Ra2 {[%clk 0:00:09]} 50. Rd8 {[%clk 0:00:02]}  Ra1+ {[%clk 0:00:09]} 51. Ke2 {[%clk 0:00:03]}  Ra2+ {[%clk 0:00:09]} 52. Ke3 {[%clk 0:00:03]}  Ra1 {[%clk 0:00:09]} 53. Raa8 {[%clk 0:00:03]}  Rf1 {[%clk 0:00:10]} 54. Rxa5 {[%clk 0:00:02]}  Rf7 {[%clk 0:00:09]} 55. Rg5+ {[%clk 0:00:02]}  Rg7 {[%clk 0:00:09]} 56. Rxg7+ {[%clk 0:00:02]}  Kxg7 {[%clk 0:00:10]} 57. Rxf8 {[%clk 0:00:03]}  Kxf8 {[%clk 0:00:10]} 58. Kd4 {[%clk 0:00:03]}  Ke7 {[%clk 0:00:11]} 59. Kxc4 {[%clk 0:00:04]}  Kd7 {[%clk 0:00:12]} 60. Kb5 {[%clk 0:00:04]}  Kd6 {[%clk 0:00:09]} 61. c4 {[%clk 0:00:04]}  Kd7 {[%clk 0:00:10]} 62. Kb6 {[%clk 0:00:04]}  Kc8 {[%clk 0:00:10]} 63. Kc6 {[%clk 0:00:04]}  Kd8 {[%clk 0:00:11]} 64. Kb7 {[%clk 0:00:04]}  Kd7 {[%clk 0:00:11]} 65. c5 {[%clk 0:00:05]}  Ke6 {[%clk 0:00:12]} 66. c6 {[%clk 0:00:05]}  Kd5 {[%clk 0:00:13]} 67. c7 {[%clk 0:00:06]}  Kc4 {[%clk 0:00:14]} 68. c8=Q+ {[%clk 0:00:07]}  Kb3 {[%clk 0:00:15]} 69. Qc6 {[%clk 0:00:07]}  Kb2 {[%clk 0:00:16]} 70. Kb6 {[%clk 0:00:08]}  Ka2 {[%clk 0:00:16]} 71. Qe4 {[%clk 0:00:08]}  Kb2 {[%clk 0:00:17]} 72. Kc5 {[%clk 0:00:09]}  Kc3 {[%clk 0:00:17]} 73. Qe3+ {[%clk 0:00:09]}  Kb2 {[%clk 0:00:14]} 74. Kc4 {[%clk 0:00:09]} 1-0


[Site "https://www.chess.com"]

[Event "Titled Tuesday Blitz May 16 Early 2023"]
[White "Ibadov, Dashgyn"]
[Black "Chernov, Mikhail"]
[WhiteFideId "24107514"]
[BlackFideId "24143170"]
[WhiteElo "2208"]
[BlackElo "2113"]
[Result "1-0"]
[Round "07"]
[TimeControl "180+2"]
[Date "2023.05.16"]
[WhiteClock "0:00:53"]
[BlackClock "0:00:27"]

1. e4 {[%clk 0:03:00]}  c5 {[%clk 0:02:59]} 2. Nf3 {[%clk 0:03:01]}  Nc6 {[%clk 0:02:58]} 3. Bb5 {[%clk 0:03:01]}  g6 {[%clk 0:02:58]} 4. O-O {[%clk 0:03:00]}  Bg7 {[%clk 0:02:58]} 5. Re1 {[%clk 0:03:01]}  e5 {[%clk 0:02:56]} 6. c3 {[%clk 0:02:59]}  Nge7 {[%clk 0:02:56]} 7. d4 {[%clk 0:02:59]}  exd4 {[%clk 0:02:55]} 8. cxd4 {[%clk 0:02:59]}  cxd4 {[%clk 0:02:56]} 9. Bf4 {[%clk 0:02:53]}  O-O {[%clk 0:02:45]} 10. Bd6 {[%clk 0:02:53]}  Re8 {[%clk 0:02:42]} 11. Bc4 {[%clk 0:02:39]}  Qa5 {[%clk 0:02:26]} 12. Qb3 {[%clk 0:02:33]}  Nd8 {[%clk 0:02:16]} 13. Nbd2 {[%clk 0:02:18]}  Ne6 {[%clk 0:02:11]} 14. e5 {[%clk 0:02:14]}  Nf5 {[%clk 0:02:09]} 15. Bb4 {[%clk 0:01:54]}  Qd8 {[%clk 0:01:57]} 16. Ne4 {[%clk 0:01:45]}  b6 {[%clk 0:01:44]} 17. Bd5 {[%clk 0:01:32]}  Rb8 {[%clk 0:01:44]} 18. Nd6 {[%clk 0:01:32]}  Nxd6 {[%clk 0:01:35]} 19. Bxd6 {[%clk 0:01:33]}  Bb7 {[%clk 0:01:35]} 20. Bxb8 {[%clk 0:01:31]}  Qxb8 {[%clk 0:01:36]} 21. Rad1 {[%clk 0:01:25]}  Nc5 {[%clk 0:01:22]} 22. Qc4 {[%clk 0:01:06]}  Bxd5 {[%clk 0:00:57]} 23. Qxd5 {[%clk 0:01:06]}  d3 {[%clk 0:00:58]} 24. b4 {[%clk 0:01:01]}  Na4 {[%clk 0:00:57]} 25. Rxd3 {[%clk 0:00:59]}  Qc7 {[%clk 0:00:27]} 26. Qxd7 {[%clk 0:00:53]} 1-0


[Site "https://www.chess.com"]

[Event "Titled Tuesday Blitz May 16 Early 2023"]
[White "Weishaeutel, Moritz"]
[Black "Rios Escobar, Adan"]
[WhiteFideId "12967300"]
[BlackFideId "3403645"]
[WhiteElo "2301"]
[BlackElo "2462"]
[Result "1-0"]
[Round "07"]
[TimeControl "180+2"]
[Date "2023.05.16"]
[WhiteClock "0:00:38"]
[BlackClock "0:00:00"]

1. e4 {[%clk 0:03:00]}  c5 {[%clk 0:02:59]} 2. d4 {[%clk 0:03:01]}  cxd4 {[%clk 0:02:59]} 3. c3 {[%clk 0:03:02]}  dxc3 {[%clk 0:03:00]} 4. Nxc3 {[%clk 0:03:02]}  d6 {[%clk 0:03:00]} 5. Nf3 {[%clk 0:03:03]}  a6 {[%clk 0:03:01]} 6. Bc4 {[%clk 0:03:01]}  Nc6 {[%clk 0:03:00]} 7. O-O {[%clk 0:03:00]}  Nf6 {[%clk 0:03:00]} 8. Bf4 {[%clk 0:03:00]}  Bg4 {[%clk 0:02:48]} 9. h3 {[%clk 0:03:00]}  Bxf3 {[%clk 0:02:44]} 10. Qxf3 {[%clk 0:03:01]}  e6 {[%clk 0:02:31]} 11. Rfd1 {[%clk 0:03:01]}  Qb8 {[%clk 0:02:22]} 12. Be2 {[%clk 0:03:02]}  Be7 {[%clk 0:02:18]} 13. Qg3 {[%clk 0:03:02]}  e5 {[%clk 0:02:14]} 14. Bg5 {[%clk 0:02:52]}  Nd4 {[%clk 0:01:51]} 15. Bf1 {[%clk 0:02:40]}  Qd8 {[%clk 0:01:23]} 16. Rac1 {[%clk 0:02:17]}  O-O {[%clk 0:01:15]} 17. Bh6 {[%clk 0:02:02]}  Ne6 {[%clk 0:01:01]} 18. Bc4 {[%clk 0:01:52]}  Nh5 {[%clk 0:01:01]} 19. Qg4 {[%clk 0:01:50]}  Nhf4 {[%clk 0:00:57]} 20. g3 {[%clk 0:01:32]}  Kh8 {[%clk 0:00:45]} 21. Bxf4 {[%clk 0:01:30]}  exf4 {[%clk 0:00:43]} 22. gxf4 {[%clk 0:01:31]}  b5 {[%clk 0:00:19]} 23. Bd5 {[%clk 0:01:05]}  Rc8 {[%clk 0:00:19]} 24. f5 {[%clk 0:01:05]}  Nc5 {[%clk 0:00:13]} 25. e5 {[%clk 0:00:45]}  dxe5 {[%clk 0:00:12]} 26. Bb7 {[%clk 0:00:42]}  Qc7 {[%clk 0:00:08]} 27. Bxc8 {[%clk 0:00:42]}  Rxc8 {[%clk 0:00:07]} 28. Nd5 {[%clk 0:00:42]}  Qb7 {[%clk 0:00:06]} 29. Nxe7 {[%clk 0:00:38]}  Qxe7 {[%clk 0:00:07]} 30. f6 {[%clk 0:00:38]}  Rg8 {[%clk 0:00:00]} 31. fxe7 {[%clk 0:00:38]} 1-0


[Site "https://www.chess.com"]

[Event "Titled Tuesday Blitz May 16 Early 2023"]
[White "Domingo Nunez, Alejandro"]
[Black "Begunov, Konstantin"]
[WhiteFideId "22245561"]
[BlackFideId "4118510"]
[WhiteElo "2291"]
[BlackElo "2050"]
[Result "1-0"]
[Round "07"]
[TimeControl "180+2"]
[Date "2023.05.16"]
[WhiteClock "0:00:48"]
[BlackClock "0:00:00"]

1. Nf3 {[%clk 0:03:00]}  d5 {[%clk 0:02:57]} 2. g3 {[%clk 0:03:01]}  c6 {[%clk 0:02:56]} 3. Bg2 {[%clk 0:03:00]}  Bf5 {[%clk 0:02:57]} 4. O-O {[%clk 0:03:00]}  Nd7 {[%clk 0:02:57]} 5. d3 {[%clk 0:03:01]}  e5 {[%clk 0:02:56]} 6. Nbd2 {[%clk 0:02:58]}  Ngf6 {[%clk 0:02:57]} 7. e4 {[%clk 0:02:59]}  dxe4 {[%clk 0:02:56]} 8. Nh4 {[%clk 0:02:59]}  Bg4 {[%clk 0:02:53]} 9. Qe1 {[%clk 0:02:58]}  exd3 {[%clk 0:02:50]} 10. cxd3 {[%clk 0:02:53]}  Be7 {[%clk 0:02:43]} 11. Nc4 {[%clk 0:02:50]}  Qc7 {[%clk 0:02:07]} 12. f4 {[%clk 0:02:49]}  Be6 {[%clk 0:01:56]} 13. fxe5 {[%clk 0:02:43]}  Nd5 {[%clk 0:01:52]} 14. Nf5 {[%clk 0:02:40]}  Bxf5 {[%clk 0:01:30]} 15. Rxf5 {[%clk 0:02:39]}  Bc5+ {[%clk 0:01:23]} 16. Kh1 {[%clk 0:02:36]}  O-O {[%clk 0:01:23]} 17. Qe4 {[%clk 0:02:17]}  b5 {[%clk 0:01:09]} 18. Ne3 {[%clk 0:02:01]}  Ne7 {[%clk 0:00:47]} 19. d4 {[%clk 0:02:00]}  Nxf5 {[%clk 0:00:44]} 20. Nxf5 {[%clk 0:02:01]}  Bb6 {[%clk 0:00:35]} 21. Bh6 {[%clk 0:01:57]}  g6 {[%clk 0:00:22]} 22. Nd6 {[%clk 0:01:47]}  c5 {[%clk 0:00:16]} 23. Rf1 {[%clk 0:01:25]}  cxd4 {[%clk 0:00:14]} 24. Qd5 {[%clk 0:01:24]}  Qc5 {[%clk 0:00:11]} 25. Qb3 {[%clk 0:01:24]}  d3 {[%clk 0:00:08]} 26. Nxf7 {[%clk 0:01:22]}  Qc4 {[%clk 0:00:08]} 27. Bd5 {[%clk 0:01:11]}  Qxb3 {[%clk 0:00:08]} 28. axb3 {[%clk 0:01:11]}  d2 {[%clk 0:00:08]} 29. Bxd2 {[%clk 0:01:10]}  Kg7 {[%clk 0:00:07]} 30. Bh6+ {[%clk 0:01:10]}  Kg8 {[%clk 0:00:07]} 31. Nd8+ {[%clk 0:00:48]}  Kh8 {[%clk 0:00:05]} 32. Rxf8+ {[%clk 0:00:49]}  Nxf8 {[%clk 0:00:05]} 33. Bxa8 {[%clk 0:00:49]}  Bxd8 {[%clk 0:00:03]} 34. Bxf8 {[%clk 0:00:49]}  Bc7 {[%clk 0:00:02]} 35. Bd6 {[%clk 0:00:49]}  Kg8 {[%clk 0:00:02]} 36. Bd5+ {[%clk 0:00:48]}  Kg7 {[%clk 0:00:00]} 37. Bxc7 {[%clk 0:00:48]} 1-0


[Site "https://www.chess.com"]

[Event "Titled Tuesday Blitz May 16 Early 2023"]
[White "Jaskolka, Tomasz"]
[Black "Devaev, Alexander"]
[WhiteFideId "1170791"]
[BlackFideId "4169395"]
[WhiteElo "2155"]
[BlackElo "2172"]
[Result "0-1"]
[Round "07"]
[TimeControl "180+2"]
[Date "2023.05.16"]
[WhiteClock "0:01:15"]
[BlackClock "0:01:19"]

1. d4 {[%clk 0:03:00]}  Nf6 {[%clk 0:02:58]} 2. Nc3 {[%clk 0:03:01]}  d5 {[%clk 0:02:57]} 3. Bf4 {[%clk 0:03:01]}  a6 {[%clk 0:02:56]} 4. Nf3 {[%clk 0:02:57]}  c5 {[%clk 0:02:49]} 5. e3 {[%clk 0:02:57]}  cxd4 {[%clk 0:02:47]} 6. exd4 {[%clk 0:02:58]}  Nc6 {[%clk 0:02:48]} 7. Bd3 {[%clk 0:02:58]}  Bg4 {[%clk 0:02:41]} 8. Be2 {[%clk 0:02:28]}  Bxf3 {[%clk 0:02:40]} 9. Bxf3 {[%clk 0:02:27]}  e6 {[%clk 0:02:40]} 10. O-O {[%clk 0:02:27]}  Qb6 {[%clk 0:02:41]} 11. Be3 {[%clk 0:02:25]}  Qxb2 {[%clk 0:02:40]} 12. Qd2 {[%clk 0:02:22]}  Qb6 {[%clk 0:02:39]} 13. Rab1 {[%clk 0:02:19]}  Qc7 {[%clk 0:02:40]} 14. Bf4 {[%clk 0:02:16]}  Bd6 {[%clk 0:02:32]} 15. Bxd6 {[%clk 0:02:11]}  Qxd6 {[%clk 0:02:33]} 16. Rxb7 {[%clk 0:02:12]}  O-O {[%clk 0:02:34]} 17. Rfb1 {[%clk 0:02:12]}  Na5 {[%clk 0:01:52]} 18. Nxd5 {[%clk 0:02:01]}  Nxb7 {[%clk 0:01:42]} 19. Nxf6+ {[%clk 0:01:47]}  gxf6 {[%clk 0:01:41]} 20. Bxb7 {[%clk 0:01:43]}  Rab8 {[%clk 0:01:38]} 21. c4 {[%clk 0:01:38]}  Qc7 {[%clk 0:01:33]} 22. Be4 {[%clk 0:01:38]}  Rxb1+ {[%clk 0:01:32]} 23. Bxb1 {[%clk 0:01:39]}  Qxc4 {[%clk 0:01:27]} 24. h4 {[%clk 0:01:39]}  Rc8 {[%clk 0:01:24]} 25. Qd3 {[%clk 0:01:16]}  Qxd3 {[%clk 0:01:23]} 26. Bxd3 {[%clk 0:01:17]}  a5 {[%clk 0:01:21]} 27. f3 {[%clk 0:01:17]}  Rd8 {[%clk 0:01:19]} 28. Kf2 {[%clk 0:01:15]}  Rxd4 {[%clk 0:01:19]} 0-1


[Site "https://www.chess.com"]

[Event "Titled Tuesday Blitz May 16 Early 2023"]
[White "Potkin, Vladimir"]
[Black "liwadas82"]
[WhiteFideId "4131061"]
[WhiteElo "2474"]
[BlackElo "2457"]
[Result "1-0"]
[Round "07"]
[TimeControl "180+2"]
[Date "2023.05.16"]
[WhiteClock "0:00:32"]
[BlackClock "0:00:06"]

1. Nf3 {[%clk 0:02:57]}  Nf6 {[%clk 0:02:59]} 2. c4 {[%clk 0:02:57]}  e6 {[%clk 0:02:58]} 3. Nc3 {[%clk 0:02:57]}  Bb4 {[%clk 0:02:54]} 4. a3 {[%clk 0:02:55]}  Bxc3 {[%clk 0:02:54]} 5. dxc3 {[%clk 0:02:56]}  b6 {[%clk 0:02:53]} 6. Nd2 {[%clk 0:02:33]}  Bb7 {[%clk 0:02:54]} 7. f3 {[%clk 0:02:31]}  Nh5 {[%clk 0:02:46]} 8. g3 {[%clk 0:02:12]}  f5 {[%clk 0:02:46]} 9. e4 {[%clk 0:02:05]}  O-O {[%clk 0:02:39]} 10. Bd3 {[%clk 0:02:02]}  f4 {[%clk 0:02:36]} 11. Nf1 {[%clk 0:01:49]}  e5 {[%clk 0:02:26]} 12. g4 {[%clk 0:01:40]}  Qh4+ {[%clk 0:02:14]} 13. Kd2 {[%clk 0:01:39]}  Ng3 {[%clk 0:02:01]} 14. Nxg3 {[%clk 0:01:32]}  fxg3 {[%clk 0:02:01]} 15. hxg3 {[%clk 0:01:29]}  Qxg3 {[%clk 0:01:59]} 16. Be2 {[%clk 0:01:21]}  Na6 {[%clk 0:01:38]} 17. b4 {[%clk 0:01:16]}  c6 {[%clk 0:01:22]} 18. Kc2 {[%clk 0:01:16]}  d5 {[%clk 0:01:14]} 19. cxd5 {[%clk 0:01:14]}  cxd5 {[%clk 0:01:14]} 20. exd5 {[%clk 0:01:02]}  Rad8 {[%clk 0:01:03]} 21. Bg5 {[%clk 0:00:53]}  Rxd5 {[%clk 0:00:46]} 22. Bc4 {[%clk 0:00:52]}  Nc7 {[%clk 0:00:44]} 23. Qd3 {[%clk 0:00:44]}  h6 {[%clk 0:00:39]} 24. Bxh6 {[%clk 0:00:44]}  Rxf3 {[%clk 0:00:33]} 25. Qg6 {[%clk 0:00:39]}  Rxc3+ {[%clk 0:00:31]} 26. Kb2 {[%clk 0:00:39]}  Qf2+ {[%clk 0:00:20]} 27. Kxc3 {[%clk 0:00:39]}  Qd4+ {[%clk 0:00:16]} 28. Kb3 {[%clk 0:00:39]}  Qxc4+ {[%clk 0:00:11]} 29. Kxc4 {[%clk 0:00:38]}  Ba6+ {[%clk 0:00:10]} 30. Kb3 {[%clk 0:00:35]}  Rd3+ {[%clk 0:00:11]} 31. Kc2 {[%clk 0:00:35]}  Rd7 {[%clk 0:00:08]} 32. Rad1 {[%clk 0:00:34]}  Nd5 {[%clk 0:00:07]} 33. Rxd5 {[%clk 0:00:32]}  Rxd5 {[%clk 0:00:06]} 34. Qxg7# {[%clk 0:00:32]} 1-0


[Site "https://www.chess.com"]

[Event "Titled Tuesday Blitz May 16 Early 2023"]
[White "Kleiman, Jake"]
[Black "merinasian"]
[WhiteFideId "2020041"]
[WhiteElo "2553"]
[BlackElo "2446"]
[Result "0-1"]
[Round "07"]
[TimeControl "180+2"]
[Date "2023.05.16"]
[WhiteClock "0:00:03"]
[BlackClock "0:00:22"]

1. e4 {[%clk 0:02:57]}  c5 {[%clk 0:02:57]} 2. Nf3 {[%clk 0:02:57]}  Nc6 {[%clk 0:02:57]} 3. c3 {[%clk 0:02:56]}  d5 {[%clk 0:02:56]} 4. exd5 {[%clk 0:02:57]}  Qxd5 {[%clk 0:02:56]} 5. d4 {[%clk 0:02:58]}  Bg4 {[%clk 0:02:56]} 6. dxc5 {[%clk 0:02:57]}  Qxd1+ {[%clk 0:02:48]} 7. Kxd1 {[%clk 0:02:58]}  e5 {[%clk 0:02:46]} 8. Be3 {[%clk 0:02:51]}  O-O-O+ {[%clk 0:02:37]} 9. Kc1 {[%clk 0:02:51]}  f5 {[%clk 0:02:32]} 10. b4 {[%clk 0:02:22]}  e4 {[%clk 0:02:03]} 11. Nd4 {[%clk 0:02:11]}  f4 {[%clk 0:01:56]} 12. Bxf4 {[%clk 0:01:54]}  Nxd4 {[%clk 0:01:56]} 13. cxd4 {[%clk 0:01:55]}  Rxd4 {[%clk 0:01:56]} 14. Bd2 {[%clk 0:01:40]}  Nf6 {[%clk 0:01:43]} 15. Na3 {[%clk 0:01:23]}  Be7 {[%clk 0:01:24]} 16. Nc2 {[%clk 0:00:54]}  Rd7 {[%clk 0:01:23]} 17. Bb5 {[%clk 0:00:54]}  Rdd8 {[%clk 0:01:18]} 18. Ne3 {[%clk 0:00:49]}  Bh5 {[%clk 0:01:13]} 19. Bc3 {[%clk 0:00:43]}  a6 {[%clk 0:01:09]} 20. Bc4 {[%clk 0:00:43]}  Rhf8 {[%clk 0:00:57]} 21. Kb2 {[%clk 0:00:26]}  Nd7 {[%clk 0:00:55]} 22. Rhf1 {[%clk 0:00:26]}  Bf6 {[%clk 0:00:55]} 23. Rae1 {[%clk 0:00:21]}  Ne5 {[%clk 0:00:54]} 24. Kb3 {[%clk 0:00:17]}  Nxc4 {[%clk 0:00:52]} 25. Kxc4 {[%clk 0:00:18]}  Bxc3 {[%clk 0:00:52]} 26. Kxc3 {[%clk 0:00:19]}  Rd3+ {[%clk 0:00:52]} 27. Kc2 {[%clk 0:00:17]}  Rfd8 {[%clk 0:00:52]} 28. g4 {[%clk 0:00:13]}  Rd2+ {[%clk 0:00:50]} 29. Kc1 {[%clk 0:00:13]}  Bf7 {[%clk 0:00:42]} 30. a3 {[%clk 0:00:13]}  Ra2 {[%clk 0:00:41]} 31. Rd1 {[%clk 0:00:13]}  Rxa3 {[%clk 0:00:40]} 32. Rxd8+ {[%clk 0:00:12]}  Kxd8 {[%clk 0:00:40]} 33. Rd1+ {[%clk 0:00:13]}  Kc7 {[%clk 0:00:39]} 34. Rd4 {[%clk 0:00:13]}  Bg6 {[%clk 0:00:33]} 35. Nc4 {[%clk 0:00:13]}  Rf3 {[%clk 0:00:31]} 36. Nb6 {[%clk 0:00:12]}  Rxf2 {[%clk 0:00:29]} 37. Rd7+ {[%clk 0:00:12]}  Kc6 {[%clk 0:00:29]} 38. Rxg7 {[%clk 0:00:10]}  e3 {[%clk 0:00:29]} 39. Re7 {[%clk 0:00:11]}  e2 {[%clk 0:00:25]} 40. Kd2 {[%clk 0:00:11]}  Rxh2 {[%clk 0:00:25]} 41. Rxe2 {[%clk 0:00:10]}  Rxe2+ {[%clk 0:00:24]} 42. Kxe2 {[%clk 0:00:11]}  Kb5 {[%clk 0:00:25]} 43. Nd5 {[%clk 0:00:11]}  Kc4 {[%clk 0:00:24]} 44. Ne7 {[%clk 0:00:08]}  Kxb4 {[%clk 0:00:23]} 45. c6 {[%clk 0:00:08]}  bxc6 {[%clk 0:00:23]} 46. Nxc6+ {[%clk 0:00:09]}  Kb5 {[%clk 0:00:23]} 47. Nd4+ {[%clk 0:00:09]}  Kc4 {[%clk 0:00:23]} 48. Nf3 {[%clk 0:00:08]}  a5 {[%clk 0:00:23]} 49. Kd2 {[%clk 0:00:08]}  Kb3 {[%clk 0:00:22]} 50. Nd4+ {[%clk 0:00:08]}  Kb2 {[%clk 0:00:22]} 51. Nb5 {[%clk 0:00:05]}  a4 {[%clk 0:00:22]} 52. Nc3 {[%clk 0:00:04]}  a3 {[%clk 0:00:22]} 53. Nd1+ {[%clk 0:00:05]}  Kb3 {[%clk 0:00:21]} 54. Nc3 {[%clk 0:00:04]}  a2 {[%clk 0:00:21]} 55. Nxa2 {[%clk 0:00:03]}  Kxa2 {[%clk 0:00:22]} 0-1


[Site "https://www.chess.com"]

[Event "Titled Tuesday Blitz May 16 Early 2023"]
[White "Jakic, Ivan"]
[Black "Fiorito, Joaquin"]
[WhiteFideId "14504901"]
[BlackFideId "180173"]
[WhiteElo "2370"]
[BlackElo "2157"]
[Result "0-1"]
[Round "07"]
[TimeControl "180+2"]
[Date "2023.05.16"]
[WhiteClock "0:00:39"]
[BlackClock "0:01:40"]

1. e4 {[%clk 0:03:00]}  c6 {[%clk 0:03:00]} 2. d4 {[%clk 0:03:00]}  d5 {[%clk 0:03:00]} 3. f3 {[%clk 0:03:00]}  e6 {[%clk 0:02:56]} 4. Nc3 {[%clk 0:03:00]}  Bb4 {[%clk 0:02:55]} 5. Bf4 {[%clk 0:02:58]}  dxe4 {[%clk 0:02:50]} 6. fxe4 {[%clk 0:02:57]}  Nf6 {[%clk 0:02:49]} 7. Qd3 {[%clk 0:02:52]}  b6 {[%clk 0:02:46]} 8. Nf3 {[%clk 0:02:49]}  O-O {[%clk 0:02:42]} 9. Qe3 {[%clk 0:02:43]}  c5 {[%clk 0:02:27]} 10. dxc5 {[%clk 0:02:14]}  Bxc5 {[%clk 0:02:26]} 11. Qd3 {[%clk 0:02:13]}  Qxd3 {[%clk 0:02:18]} 12. Bxd3 {[%clk 0:02:12]}  Nc6 {[%clk 0:02:15]} 13. O-O-O {[%clk 0:02:10]}  Bb7 {[%clk 0:02:07]} 14. h3 {[%clk 0:02:09]}  Nb4 {[%clk 0:02:05]} 15. Rhe1 {[%clk 0:02:04]}  Rac8 {[%clk 0:02:03]} 16. Kb1 {[%clk 0:02:02]}  Rfd8 {[%clk 0:02:01]} 17. a3 {[%clk 0:01:59]}  Nxd3 {[%clk 0:02:01]} 18. cxd3 {[%clk 0:02:00]}  Bxa3 {[%clk 0:01:56]} 19. Nb5 {[%clk 0:01:59]}  Bb4 {[%clk 0:01:56]} 20. Nxa7 {[%clk 0:01:38]}  Ra8 {[%clk 0:01:52]} 21. Bc7 {[%clk 0:00:58]}  Rd7 {[%clk 0:01:46]} 22. Bxb6 {[%clk 0:00:57]}  Bxe1 {[%clk 0:01:42]} 23. Rxe1 {[%clk 0:00:51]}  Ba6 {[%clk 0:01:42]} 24. Ne5 {[%clk 0:00:49]}  Rdxa7 {[%clk 0:01:42]} 25. Bxa7 {[%clk 0:00:49]}  Rxa7 {[%clk 0:01:43]} 26. Rc1 {[%clk 0:00:45]}  g6 {[%clk 0:01:42]} 27. g4 {[%clk 0:00:44]}  h6 {[%clk 0:01:42]} 28. h4 {[%clk 0:00:43]}  Nd7 {[%clk 0:01:40]} 29. Nc6 {[%clk 0:00:39]}  Bxd3+ {[%clk 0:01:40]} 0-1


[Site "https://www.chess.com"]

[Event "Titled Tuesday Blitz May 16 Early 2023"]
[White "Melikyan, Gnel"]
[Black "Kielinkei"]
[WhiteFideId "54109990"]
[WhiteElo "2138"]
[BlackElo "2438"]
[Result "1-0"]
[Round "07"]
[TimeControl "180+2"]
[Date "2023.05.16"]
[WhiteClock "0:00:46"]
[BlackClock "0:00:28"]

1. c4 {[%clk 0:02:58]}  Nf6 {[%clk 0:02:59]} 2. Nc3 {[%clk 0:02:58]}  e6 {[%clk 0:02:59]} 3. Nf3 {[%clk 0:02:56]}  c5 {[%clk 0:02:55]} 4. g3 {[%clk 0:02:54]}  Nc6 {[%clk 0:02:53]} 5. Bg2 {[%clk 0:02:54]}  Be7 {[%clk 0:02:52]} 6. O-O {[%clk 0:02:54]}  O-O {[%clk 0:02:52]} 7. d4 {[%clk 0:02:54]}  cxd4 {[%clk 0:02:50]} 8. Nxd4 {[%clk 0:02:53]}  a6 {[%clk 0:02:48]} 9. b3 {[%clk 0:02:49]}  Qc7 {[%clk 0:02:46]} 10. Bb2 {[%clk 0:02:47]}  b6 {[%clk 0:02:39]} 11. Rc1 {[%clk 0:02:45]}  Bb7 {[%clk 0:02:37]} 12. Nd5 {[%clk 0:02:39]}  Qd8 {[%clk 0:02:14]} 13. Nxc6 {[%clk 0:02:11]}  Bxc6 {[%clk 0:02:04]} 14. Nxe7+ {[%clk 0:01:50]}  Qxe7 {[%clk 0:02:05]} 15. Qd4 {[%clk 0:01:45]}  Bxg2 {[%clk 0:01:58]} 16. Kxg2 {[%clk 0:01:46]}  b5 {[%clk 0:01:46]} 17. Rfd1 {[%clk 0:01:40]}  bxc4 {[%clk 0:01:44]} 18. Rxc4 {[%clk 0:01:38]}  d5 {[%clk 0:01:43]} 19. Rc2 {[%clk 0:01:35]}  Rfc8 {[%clk 0:01:39]} 20. Rdc1 {[%clk 0:01:34]}  Qd7 {[%clk 0:01:36]} 21. Qb6 {[%clk 0:01:05]}  h6 {[%clk 0:01:13]} 22. Rc7 {[%clk 0:00:59]}  Rxc7 {[%clk 0:01:04]} 23. Rxc7 {[%clk 0:00:58]}  Qe8 {[%clk 0:00:55]} 24. Bxf6 {[%clk 0:00:51]}  gxf6 {[%clk 0:00:55]} 25. Qb7 {[%clk 0:00:51]}  Rb8 {[%clk 0:00:33]} 26. Qxa6 {[%clk 0:00:48]}  Ra8 {[%clk 0:00:32]} 27. Qb7 {[%clk 0:00:46]}  Rxa2 {[%clk 0:00:28]} 28. Rc8 {[%clk 0:00:46]} 1-0


[Site "https://www.chess.com"]